[Event "Titled Tuesday Blitz March 28 Early 2023"]
[White "Lopez Del Alamo, Antonio"]
[Black "Belozerov, Andrei"]
[WhiteFideId "2227339"]
[BlackFideId "4120213"]
[WhiteElo "2175"]
[BlackElo "2360"]
[Result "1-0"]
[Round "01"]
[TimeControl "180+2"]
[Date "2023.03.28"]
[WhiteClock "0:00:08"]
[BlackClock "0:00:09"]

1. e4 {[%clk 0:02:53]}  c5 {[%clk 0:02:59]} 2. Nf3 {[%clk 0:02:52]}  Nc6 {[%clk 0:02:59]} 3. Bb5 {[%clk 0:02:51]}  g6 {[%clk 0:02:58]} 4. Bxc6 {[%clk 0:02:51]}  bxc6 {[%clk 0:02:58]} 5. O-O {[%clk 0:02:49]}  Bg7 {[%clk 0:02:58]} 6. c3 {[%clk 0:02:47]}  Nf6 {[%clk 0:02:57]} 7. Re1 {[%clk 0:02:47]}  O-O {[%clk 0:02:57]} 8. h3 {[%clk 0:02:45]}  d6 {[%clk 0:02:51]} 9. d4 {[%clk 0:02:44]}  cxd4 {[%clk 0:02:47]} 10. cxd4 {[%clk 0:02:45]}  a5 {[%clk 0:02:42]} 11. Nc3 {[%clk 0:02:43]}  Nd7 {[%clk 0:02:25]} 12. Be3 {[%clk 0:02:30]}  Nb6 {[%clk 0:02:22]} 13. Qc2 {[%clk 0:02:17]}  a4 {[%clk 0:02:16]} 14. Rad1 {[%clk 0:02:11]}  Be6 {[%clk 0:02:11]} 15. Bc1 {[%clk 0:01:58]}  Qc7 {[%clk 0:02:01]} 16. Nb5 {[%clk 0:01:45]}  Qb7 {[%clk 0:01:59]} 17. Nc3 {[%clk 0:01:45]}  Rfc8 {[%clk 0:01:57]} 18. Rd2 {[%clk 0:01:25]}  Rcb8 {[%clk 0:01:50]} 19. Rde2 {[%clk 0:01:21]}  Bc4 {[%clk 0:01:45]} 20. Re3 {[%clk 0:01:19]}  Qa6 {[%clk 0:01:39]} 21. e5 {[%clk 0:01:15]}  Nd5 {[%clk 0:01:30]} 22. Nxd5 {[%clk 0:01:13]}  Bxd5 {[%clk 0:01:30]} 23. a3 {[%clk 0:01:08]}  h6 {[%clk 0:01:19]} 24. Rc3 {[%clk 0:00:57]}  Qb5 {[%clk 0:01:13]} 25. Nd2 {[%clk 0:00:56]}  dxe5 {[%clk 0:01:07]} 26. dxe5 {[%clk 0:00:55]}  Rd8 {[%clk 0:01:07]} 27. Rc5 {[%clk 0:00:47]}  Qb6 {[%clk 0:01:03]} 28. Nf1 {[%clk 0:00:36]}  Bb3 {[%clk 0:00:59]} 29. Qc3 {[%clk 0:00:33]}  Rd3 {[%clk 0:00:49]} 30. Qxd3 {[%clk 0:00:28]}  Qxc5 {[%clk 0:00:49]} 31. Bd2 {[%clk 0:00:23]}  Qb6 {[%clk 0:00:43]} 32. Bc3 {[%clk 0:00:22]}  Rd8 {[%clk 0:00:43]} 33. Qe2 {[%clk 0:00:20]}  Qb5 {[%clk 0:00:42]} 34. Qxb5 {[%clk 0:00:17]}  cxb5 {[%clk 0:00:43]} 35. Ne3 {[%clk 0:00:16]}  Rd3 {[%clk 0:00:40]} 36. f4 {[%clk 0:00:16]}  h5 {[%clk 0:00:32]} 37. Kf2 {[%clk 0:00:16]}  e6 {[%clk 0:00:32]} 38. Ke2 {[%clk 0:00:16]}  Rd7 {[%clk 0:00:30]} 39. Kf3 {[%clk 0:00:13]}  Bf8 {[%clk 0:00:29]} 40. Re2 {[%clk 0:00:13]}  Bc5 {[%clk 0:00:29]} 41. Rd2 {[%clk 0:00:12]}  Rxd2 {[%clk 0:00:23]} 42. Bxd2 {[%clk 0:00:12]}  Kf8 {[%clk 0:00:18]} 43. Bb4 {[%clk 0:00:11]}  Bxb4 {[%clk 0:00:17]} 44. axb4 {[%clk 0:00:12]}  Ke7 {[%clk 0:00:18]} 45. Ke4 {[%clk 0:00:12]}  Kd7 {[%clk 0:00:17]} 46. Kd4 {[%clk 0:00:12]}  Kc6 {[%clk 0:00:17]} 47. g3 {[%clk 0:00:12]}  Ba2 {[%clk 0:00:16]} 48. g4 {[%clk 0:00:12]}  h4 {[%clk 0:00:15]} 49. Ng2 {[%clk 0:00:11]}  Bb3 {[%clk 0:00:11]} 50. Nxh4 {[%clk 0:00:11]}  Bd1 {[%clk 0:00:11]} 51. Ng2 {[%clk 0:00:09]}  Bf3 {[%clk 0:00:11]} 52. Ne3 {[%clk 0:00:08]}  Be2 {[%clk 0:00:09]} 53. f5 {[%clk 0:00:08]}  exf5 {[%clk 0:00:09]} 54. gxf5 {[%clk 0:00:09]}  g5 {[%clk 0:00:10]} 55. Ke4 {[%clk 0:00:06]}  Kc7 {[%clk 0:00:06]} 56. Nd5+ {[%clk 0:00:06]}  Kc6 {[%clk 0:00:06]} 57. Nf6 {[%clk 0:00:06]}  Kc7 {[%clk 0:00:05]} 58. Nh7 {[%clk 0:00:06]}  g4 {[%clk 0:00:05]} 59. hxg4 {[%clk 0:00:06]}  Bxg4 {[%clk 0:00:06]} 60. e6 {[%clk 0:00:06]}  fxe6 {[%clk 0:00:05]} 61. f6 {[%clk 0:00:06]}  Bf5+ {[%clk 0:00:06]} 62. Ke5 {[%clk 0:00:06]}  Kd7 {[%clk 0:00:05]} 63. f7 {[%clk 0:00:04]}  Bxh7 {[%clk 0:00:04]} 64. f8=Q {[%clk 0:00:05]}  Bf5 {[%clk 0:00:04]} 65. Qd6+ {[%clk 0:00:05]}  Ke8 {[%clk 0:00:05]} 66. Qc5 {[%clk 0:00:05]}  Kf7 {[%clk 0:00:05]} 67. Qxb5 {[%clk 0:00:05]}  Bc2 {[%clk 0:00:05]} 68. Qc5 {[%clk 0:00:05]}  Bb3 {[%clk 0:00:05]} 69. b5 {[%clk 0:00:05]}  Bd5 {[%clk 0:00:06]} 70. b6 {[%clk 0:00:05]}  Kg6 {[%clk 0:00:05]} 71. Qxd5 {[%clk 0:00:05]}  exd5 {[%clk 0:00:05]} 72. Kxd5 {[%clk 0:00:06]}  Kf5 {[%clk 0:00:04]} 73. b7 {[%clk 0:00:07]}  Kf4 {[%clk 0:00:05]} 74. b8=Q+ {[%clk 0:00:07]}  Ke3 {[%clk 0:00:06]} 75. Qe5+ {[%clk 0:00:07]}  Kd2 {[%clk 0:00:07]} 76. Qc3+ {[%clk 0:00:08]}  Kd1 {[%clk 0:00:07]} 77. Kd4 {[%clk 0:00:08]}  a3 {[%clk 0:00:07]} 78. bxa3 {[%clk 0:00:08]}  Ke2 {[%clk 0:00:08]} 79. Qe3+ {[%clk 0:00:08]}  Kd1 {[%clk 0:00:08]} 80. Qf2 {[%clk 0:00:08]}  Kc1 {[%clk 0:00:08]} 81. Kc3 {[%clk 0:00:08]}  Kb1 {[%clk 0:00:09]} 82. Qb2# {[%clk 0:00:08]} 1-0


[Site "https://www.chess.com"]

[Event "Titled Tuesday Blitz March 28 Early 2023"]
[White "Tatarinov, Dmitry"]
[Black "Polanco Nunez, Yoel Estarling"]
[WhiteFideId "24160067"]
[BlackFideId "6401783"]
[WhiteElo "2326"]
[BlackElo "2132"]
[Result "1-0"]
[Round "01"]
[TimeControl "180+2"]
[Date "2023.03.28"]
[WhiteClock "0:00:59"]
[BlackClock "0:00:11"]

1. e4 {[%clk 0:02:56]}  e5 {[%clk 0:02:58]} 2. Nf3 {[%clk 0:02:56]}  Nc6 {[%clk 0:02:59]} 3. Bb5 {[%clk 0:02:56]}  a6 {[%clk 0:02:57]} 4. Ba4 {[%clk 0:02:56]}  Nf6 {[%clk 0:02:57]} 5. O-O {[%clk 0:02:56]}  Be7 {[%clk 0:02:58]} 6. Re1 {[%clk 0:02:56]}  b5 {[%clk 0:02:53]} 7. Bb3 {[%clk 0:02:56]}  O-O {[%clk 0:02:52]} 8. a4 {[%clk 0:02:56]}  Bb7 {[%clk 0:02:49]} 9. Nc3 {[%clk 0:02:55]}  b4 {[%clk 0:02:48]} 10. Nd5 {[%clk 0:02:55]}  d6 {[%clk 0:02:47]} 11. Nxf6+ {[%clk 0:02:51]}  Bxf6 {[%clk 0:02:47]} 12. Bd5 {[%clk 0:02:51]}  a5 {[%clk 0:02:31]} 13. d3 {[%clk 0:02:49]}  Qc8 {[%clk 0:02:30]} 14. Be3 {[%clk 0:02:40]}  Ne7 {[%clk 0:02:29]} 15. Bb3 {[%clk 0:02:40]}  c5 {[%clk 0:02:21]} 16. Nd2 {[%clk 0:02:35]}  Nc6 {[%clk 0:02:11]} 17. Nc4 {[%clk 0:02:32]}  Qc7 {[%clk 0:02:11]} 18. c3 {[%clk 0:02:28]}  Rfe8 {[%clk 0:01:57]} 19. Qc2 {[%clk 0:02:16]}  Bc8 {[%clk 0:01:52]} 20. Nd2 {[%clk 0:02:10]}  Be6 {[%clk 0:01:52]} 21. Bxe6 {[%clk 0:02:10]}  fxe6 {[%clk 0:01:49]} 22. c4 {[%clk 0:01:56]}  b3 {[%clk 0:01:35]} 23. Nxb3 {[%clk 0:01:53]}  Rab8 {[%clk 0:01:34]} 24. Nc1 {[%clk 0:01:52]}  Rb7 {[%clk 0:01:27]} 25. Bd2 {[%clk 0:01:51]}  Reb8 {[%clk 0:01:26]} 26. Bc3 {[%clk 0:01:51]}  Nb4 {[%clk 0:01:10]} 27. Bxb4 {[%clk 0:01:50]}  Rxb4 {[%clk 0:01:09]} 28. b3 {[%clk 0:01:50]}  Bg5 {[%clk 0:00:59]} 29. Rb1 {[%clk 0:01:47]}  Bxc1 {[%clk 0:00:58]} 30. Rexc1 {[%clk 0:01:46]}  Qb7 {[%clk 0:00:58]} 31. Qc3 {[%clk 0:01:43]}  Rxb3 {[%clk 0:00:56]} 32. Rxb3 {[%clk 0:01:43]}  Qxb3 {[%clk 0:00:57]} 33. Qxa5 {[%clk 0:01:43]}  Qc2 {[%clk 0:00:49]} 34. Rf1 {[%clk 0:01:31]}  Rb1 {[%clk 0:00:48]} 35. Qd8+ {[%clk 0:01:30]}  Kf7 {[%clk 0:00:48]} 36. Qd7+ {[%clk 0:01:30]}  Kf6 {[%clk 0:00:48]} 37. Qd8+ {[%clk 0:01:26]}  Kg6 {[%clk 0:00:48]} 38. Qe8+ {[%clk 0:01:25]}  Kf6 {[%clk 0:00:46]} 39. Qf8+ {[%clk 0:01:25]}  Kg6 {[%clk 0:00:43]} 40. g3 {[%clk 0:01:17]}  Rxf1+ {[%clk 0:00:38]} 41. Kxf1 {[%clk 0:01:17]}  Qxd3+ {[%clk 0:00:39]} 42. Kg1 {[%clk 0:01:17]}  Qb1+ {[%clk 0:00:33]} 43. Kg2 {[%clk 0:01:17]}  Qxe4+ {[%clk 0:00:33]} 44. f3 {[%clk 0:01:17]}  Qc2+ {[%clk 0:00:29]} 45. Kh3 {[%clk 0:01:17]}  Qxa4 {[%clk 0:00:19]} 46. Qxd6 {[%clk 0:01:08]}  Qxc4 {[%clk 0:00:19]} 47. Qxe5 {[%clk 0:01:07]}  Qd5 {[%clk 0:00:20]} 48. Qe3 {[%clk 0:01:04]}  c4 {[%clk 0:00:18]} 49. g4 {[%clk 0:01:04]}  e5 {[%clk 0:00:17]} 50. Qb6+ {[%clk 0:00:58]}  Kg5 {[%clk 0:00:14]} 51. Kg3 {[%clk 0:00:59]}  Qd4 {[%clk 0:00:11]} 52. h4# {[%clk 0:00:59]} 1-0


[Site "https://www.chess.com"]

[Event "Titled Tuesday Blitz March 28 Early 2023"]
[White "Sawyer, Bradley"]
[Black "Antonica, Dragos-Andrei"]
[WhiteFideId "2023784"]
[BlackFideId "1246372"]
[WhiteElo "2332"]
[BlackElo "2285"]
[Result "0-1"]
[Round "01"]
[TimeControl "180+2"]
[Date "2023.03.28"]
[WhiteClock "0:00:39"]
[BlackClock "0:02:13"]

1. e4 {[%clk 0:02:57]}  c5 {[%clk 0:02:59]} 2. Nc3 {[%clk 0:02:53]}  d6 {[%clk 0:02:58]} 3. Nf3 {[%clk 0:02:52]}  Nf6 {[%clk 0:02:57]} 4. d4 {[%clk 0:02:52]}  cxd4 {[%clk 0:02:57]} 5. Nxd4 {[%clk 0:02:53]}  Nc6 {[%clk 0:02:58]} 6. Bg5 {[%clk 0:02:53]}  e6 {[%clk 0:02:56]} 7. Qd2 {[%clk 0:02:52]}  Bd7 {[%clk 0:02:56]} 8. O-O-O {[%clk 0:02:52]}  a6 {[%clk 0:02:57]} 9. f4 {[%clk 0:02:50]}  b5 {[%clk 0:02:56]} 10. a3 {[%clk 0:02:40]}  Qb6 {[%clk 0:02:54]} 11. Nxc6 {[%clk 0:02:05]}  Bxc6 {[%clk 0:02:54]} 12. Bxf6 {[%clk 0:01:52]}  gxf6 {[%clk 0:02:55]} 13. f5 {[%clk 0:01:28]}  h5 {[%clk 0:02:50]} 14. Kb1 {[%clk 0:01:28]}  Qc5 {[%clk 0:02:42]} 15. Bd3 {[%clk 0:01:05]}  Bh6 {[%clk 0:02:23]} 16. Qe2 {[%clk 0:01:02]}  Ke7 {[%clk 0:02:21]} 17. Na2 {[%clk 0:00:45]}  a5 {[%clk 0:02:15]} 18. Nc1 {[%clk 0:00:41]}  b4 {[%clk 0:02:13]} 19. Nb3 {[%clk 0:00:39]}  Qe5 {[%clk 0:02:13]} 0-1


[Site "https://www.chess.com"]

[Event "Titled Tuesday Blitz March 28 Early 2023"]
[White "Aveskulov, Valeriy"]
[Black "BeReal24"]
[WhiteFideId "14109743"]
[WhiteElo "2552"]
[BlackElo "2317"]
[Result "1-0"]
[Round "01"]
[TimeControl "180+2"]
[Date "2023.03.28"]
[WhiteClock "0:00:14"]
[BlackClock "0:00:18"]

1. e4 {[%clk 0:02:58]}  c5 {[%clk 0:02:59]} 2. Nf3 {[%clk 0:02:57]}  d6 {[%clk 0:02:57]} 3. d4 {[%clk 0:02:57]}  cxd4 {[%clk 0:02:52]} 4. Nxd4 {[%clk 0:02:58]}  Nf6 {[%clk 0:02:51]} 5. Nc3 {[%clk 0:02:58]}  a6 {[%clk 0:02:50]} 6. Be2 {[%clk 0:02:58]}  e5 {[%clk 0:02:49]} 7. Nb3 {[%clk 0:02:58]}  Be7 {[%clk 0:02:47]} 8. Bg5 {[%clk 0:02:59]}  Be6 {[%clk 0:02:45]} 9. Bxf6 {[%clk 0:02:58]}  Bxf6 {[%clk 0:02:44]} 10. Qd3 {[%clk 0:02:59]}  Nc6 {[%clk 0:02:32]} 11. O-O-O {[%clk 0:02:59]}  Be7 {[%clk 0:02:19]} 12. Kb1 {[%clk 0:02:32]}  O-O {[%clk 0:01:51]} 13. Nd5 {[%clk 0:02:27]}  Bxd5 {[%clk 0:01:44]} 14. exd5 {[%clk 0:02:28]}  Nb4 {[%clk 0:01:42]} 15. Qd2 {[%clk 0:02:25]}  a5 {[%clk 0:01:38]} 16. a3 {[%clk 0:02:25]}  Na6 {[%clk 0:01:25]} 17. Qxa5 {[%clk 0:02:25]}  Qd7 {[%clk 0:01:22]} 18. Qb6 {[%clk 0:02:16]}  Rfc8 {[%clk 0:01:21]} 19. Bxa6 {[%clk 0:01:47]}  Rxa6 {[%clk 0:01:16]} 20. Qe3 {[%clk 0:01:48]}  Bd8 {[%clk 0:01:14]} 21. f3 {[%clk 0:01:33]}  b5 {[%clk 0:01:13]} 22. c3 {[%clk 0:01:30]}  Qb7 {[%clk 0:01:08]} 23. Nc1 {[%clk 0:01:25]}  Ra4 {[%clk 0:01:07]} 24. Na2 {[%clk 0:01:25]}  Rac4 {[%clk 0:01:05]} 25. Nb4 {[%clk 0:01:24]}  Bb6 {[%clk 0:01:05]} 26. Qe2 {[%clk 0:01:22]}  Bc5 {[%clk 0:01:05]} 27. Nc6 {[%clk 0:01:21]}  Kh8 {[%clk 0:01:01]} 28. h4 {[%clk 0:01:12]}  Ra8 {[%clk 0:01:01]} 29. h5 {[%clk 0:01:10]}  Qa6 {[%clk 0:00:58]} 30. h6 {[%clk 0:01:07]}  g6 {[%clk 0:00:56]} 31. Rhe1 {[%clk 0:00:24]}  Qa4 {[%clk 0:00:49]} 32. Nxe5 {[%clk 0:00:22]}  Bxa3 {[%clk 0:00:27]} 33. Nxc4 {[%clk 0:00:19]}  Rf8 {[%clk 0:00:19]} 34. Qe7 {[%clk 0:00:15]}  Kg8 {[%clk 0:00:18]} 35. Qf6 {[%clk 0:00:14]} 1-0


[Site "https://www.chess.com"]

[Event "Titled Tuesday Blitz March 28 Early 2023"]
[White "Annaberdiyev, Meylis"]
[Black "Gronnestad, Anita"]
[WhiteFideId "14000563"]
[BlackFideId "1502972"]
[WhiteElo "2416"]
[BlackElo "1939"]
[Result "1-0"]
[Round "01"]
[TimeControl "180+2"]
[Date "2023.03.28"]
[WhiteClock "0:00:54"]
[BlackClock "0:00:11"]

1. e4 {[%clk 0:02:59]}  c6 {[%clk 0:02:58]} 2. d4 {[%clk 0:02:58]}  d5 {[%clk 0:02:56]} 3. e5 {[%clk 0:02:58]}  c5 {[%clk 0:02:56]} 4. dxc5 {[%clk 0:02:57]}  e6 {[%clk 0:02:56]} 5. Qg4 {[%clk 0:02:56]}  Nc6 {[%clk 0:02:51]} 6. Nf3 {[%clk 0:02:55]}  Nge7 {[%clk 0:02:50]} 7. Bd3 {[%clk 0:02:54]}  Ng6 {[%clk 0:02:49]} 8. Qg3 {[%clk 0:02:52]}  Bxc5 {[%clk 0:02:47]} 9. O-O {[%clk 0:02:50]}  O-O {[%clk 0:02:45]} 10. Nbd2 {[%clk 0:02:42]}  Qc7 {[%clk 0:02:43]} 11. Nb3 {[%clk 0:02:41]}  Bb6 {[%clk 0:02:36]} 12. Re1 {[%clk 0:02:26]}  a5 {[%clk 0:02:35]} 13. a4 {[%clk 0:02:23]}  Nb4 {[%clk 0:02:31]} 14. Nbd4 {[%clk 0:02:07]}  Nxd3 {[%clk 0:02:24]} 15. cxd3 {[%clk 0:02:05]}  Bd7 {[%clk 0:02:18]} 16. h4 {[%clk 0:01:50]}  Kh8 {[%clk 0:02:13]} 17. h5 {[%clk 0:01:49]}  Ne7 {[%clk 0:02:14]} 18. h6 {[%clk 0:01:45]}  g6 {[%clk 0:02:12]} 19. Bg5 {[%clk 0:01:41]}  Nf5 {[%clk 0:02:02]} 20. Nxf5 {[%clk 0:01:32]}  exf5 {[%clk 0:02:02]} 21. Rac1 {[%clk 0:01:31]}  Bc6 {[%clk 0:01:56]} 22. Be3 {[%clk 0:01:19]}  Bxe3 {[%clk 0:01:25]} 23. Rxe3 {[%clk 0:01:18]}  Rae8 {[%clk 0:01:22]} 24. Qh4 {[%clk 0:01:15]}  Qe7 {[%clk 0:01:20]} 25. Qd4 {[%clk 0:01:13]}  g5 {[%clk 0:00:46]} 26. e6+ {[%clk 0:01:03]}  f6 {[%clk 0:00:46]} 27. Nxg5 {[%clk 0:01:03]}  f4 {[%clk 0:00:26]} 28. Nf7+ {[%clk 0:00:54]}  Rxf7 {[%clk 0:00:20]} 29. exf7 {[%clk 0:00:55]}  fxe3 {[%clk 0:00:18]} 30. fxe8=Q+ {[%clk 0:00:55]}  Bxe8 {[%clk 0:00:18]} 31. Qxe3 {[%clk 0:00:55]}  Qf7 {[%clk 0:00:11]} 32. Rc8 {[%clk 0:00:54]} 1-0


[Site "https://www.chess.com"]

[Event "Titled Tuesday Blitz March 28 Early 2023"]
[White "Rozman, Levy"]
[Black "Alahakoon, Isuru"]
[WhiteFideId "2039877"]
[BlackFideId "9900993"]
[WhiteElo "2376"]
[BlackElo "1995"]
[Result "1/2-1/2"]
[Round "01"]
[TimeControl "180+2"]
[Date "2023.03.28"]
[WhiteClock "0:00:33"]
[BlackClock "0:00:15"]

1. e4 {[%clk 0:02:59]}  d5 {[%clk 0:02:57]} 2. exd5 {[%clk 0:02:59]}  Nf6 {[%clk 0:02:56]} 3. Bb5+ {[%clk 0:02:58]}  Bd7 {[%clk 0:02:54]} 4. Bxd7+ {[%clk 0:02:58]}  Qxd7 {[%clk 0:02:48]} 5. c4 {[%clk 0:02:59]}  c6 {[%clk 0:02:48]} 6. Nc3 {[%clk 0:02:15]}  cxd5 {[%clk 0:02:47]} 7. cxd5 {[%clk 0:02:16]}  Nxd5 {[%clk 0:02:45]} 8. Nf3 {[%clk 0:02:17]}  Nc6 {[%clk 0:02:43]} 9. O-O {[%clk 0:02:17]}  e6 {[%clk 0:02:37]} 10. d4 {[%clk 0:02:16]}  Be7 {[%clk 0:02:36]} 11. Re1 {[%clk 0:02:16]}  O-O {[%clk 0:02:36]} 12. Be3 {[%clk 0:02:11]}  Rac8 {[%clk 0:02:34]} 13. Rc1 {[%clk 0:02:08]}  Bf6 {[%clk 0:02:28]} 14. Ne4 {[%clk 0:02:07]}  Rfd8 {[%clk 0:02:23]} 15. a3 {[%clk 0:02:06]}  Be7 {[%clk 0:02:16]} 16. Qe2 {[%clk 0:02:02]}  Nf6 {[%clk 0:02:12]} 17. Ng3 {[%clk 0:01:56]}  h6 {[%clk 0:02:06]} 18. Red1 {[%clk 0:01:55]}  Na5 {[%clk 0:01:55]} 19. b4 {[%clk 0:01:50]}  Rxc1 {[%clk 0:01:46]} 20. Rxc1 {[%clk 0:01:50]}  Nc6 {[%clk 0:01:46]} 21. h3 {[%clk 0:01:46]}  a6 {[%clk 0:01:43]} 22. Qc4 {[%clk 0:01:43]}  Qd5 {[%clk 0:01:40]} 23. Ne2 {[%clk 0:01:32]}  Qxc4 {[%clk 0:01:40]} 24. Rxc4 {[%clk 0:01:33]}  Ne4 {[%clk 0:01:33]} 25. Kf1 {[%clk 0:01:32]}  Nd6 {[%clk 0:01:28]} 26. Rc1 {[%clk 0:01:31]}  Nb5 {[%clk 0:01:26]} 27. Ra1 {[%clk 0:01:26]}  Bf6 {[%clk 0:01:20]} 28. a4 {[%clk 0:01:18]}  Nbxd4 {[%clk 0:01:19]} 29. Nexd4 {[%clk 0:01:17]}  Nxd4 {[%clk 0:01:19]} 30. Bxd4 {[%clk 0:01:11]}  Bxd4 {[%clk 0:01:18]} 31. Rc1 {[%clk 0:01:11]}  Bf6 {[%clk 0:01:07]} 32. Ke2 {[%clk 0:01:10]}  Rd7 {[%clk 0:01:03]} 33. Rc2 {[%clk 0:01:08]}  g6 {[%clk 0:01:02]} 34. Nd2 {[%clk 0:01:08]}  Be7 {[%clk 0:00:59]} 35. Rc4 {[%clk 0:01:05]}  b5 {[%clk 0:00:55]} 36. axb5 {[%clk 0:01:06]}  axb5 {[%clk 0:00:55]} 37. Re4 {[%clk 0:01:06]}  Ra7 {[%clk 0:00:48]} 38. Nb3 {[%clk 0:01:02]}  Ra4 {[%clk 0:00:46]} 39. Re5 {[%clk 0:00:46]}  Rxb4 {[%clk 0:00:44]} 40. Na5 {[%clk 0:00:47]}  Rb2+ {[%clk 0:00:42]} 41. Kf3 {[%clk 0:00:47]}  Bf6 {[%clk 0:00:31]} 42. Re4 {[%clk 0:00:41]}  Ra2 {[%clk 0:00:26]} 43. Nc6 {[%clk 0:00:40]}  Kg7 {[%clk 0:00:23]} 44. g4 {[%clk 0:00:37]}  Ra3+ {[%clk 0:00:20]} 45. Kg2 {[%clk 0:00:37]}  Ra4 {[%clk 0:00:21]} 46. Re3 {[%clk 0:00:29]}  b4 {[%clk 0:00:19]} 47. Rd3 {[%clk 0:00:27]}  Ra3 {[%clk 0:00:18]} 48. Nxb4 {[%clk 0:00:27]}  Rxd3 {[%clk 0:00:17]} 49. Nxd3 {[%clk 0:00:28]}  h5 {[%clk 0:00:16]} 50. Kf3 {[%clk 0:00:27]}  hxg4+ {[%clk 0:00:16]} 51. Kxg4 {[%clk 0:00:28]}  Be7 {[%clk 0:00:15]} 52. Ne5 {[%clk 0:00:28]}  Bf6 {[%clk 0:00:15]} 53. Nc6 {[%clk 0:00:28]}  Bb2 {[%clk 0:00:15]} 54. Nb4 {[%clk 0:00:29]}  Bc3 {[%clk 0:00:15]} 55. Nc2 {[%clk 0:00:28]}  Bf6 {[%clk 0:00:15]} 56. Kf3 {[%clk 0:00:28]}  Be7 {[%clk 0:00:16]} 57. Ke4 {[%clk 0:00:29]}  Bf6 {[%clk 0:00:16]} 58. f3 {[%clk 0:00:30]}  Be7 {[%clk 0:00:16]} 59. Ne3 {[%clk 0:00:30]}  Bf6 {[%clk 0:00:16]} 60. Kf4 {[%clk 0:00:31]}  Be7 {[%clk 0:00:15]} 61. Kg4 {[%clk 0:00:31]}  Bf6 {[%clk 0:00:14]} 62. Nc4 {[%clk 0:00:32]}  Be7 {[%clk 0:00:14]} 63. Nb2 {[%clk 0:00:32]}  Bf6 {[%clk 0:00:14]} 64. Nd3 {[%clk 0:00:33]}  Be7 {[%clk 0:00:15]} 65. Nf4 {[%clk 0:00:33]}  Bf6 {[%clk 0:00:15]} 66. Ng2 {[%clk 0:00:34]}  Be7 {[%clk 0:00:15]} 67. Ne1 {[%clk 0:00:34]}  Bf6 {[%clk 0:00:15]} 68. Nc2 {[%clk 0:00:35]}  Be7 {[%clk 0:00:16]} 69. Ne3 {[%clk 0:00:35]}  Bf6 {[%clk 0:00:16]} 70. Nc4 {[%clk 0:00:35]}  Be7 {[%clk 0:00:16]} 71. Na5 {[%clk 0:00:35]}  f5+ {[%clk 0:00:16]} 72. Kg3 {[%clk 0:00:34]}  Bd6+ {[%clk 0:00:17]} 73. Kg2 {[%clk 0:00:34]}  Kf6 {[%clk 0:00:17]} 74. Nc4 {[%clk 0:00:35]}  Bc7 {[%clk 0:00:16]} 75. Nd2 {[%clk 0:00:34]}  g5 {[%clk 0:00:16]} 76. Nb3 {[%clk 0:00:33]}  Bb6 {[%clk 0:00:15]} 77. Nd2 {[%clk 0:00:33]}  e5 {[%clk 0:00:15]} 78. Nc4 {[%clk 0:00:32]}  Bd4 {[%clk 0:00:15]} 79. Nd6 {[%clk 0:00:32]}  Ke6 {[%clk 0:00:15]} 80. Ne8 {[%clk 0:00:32]}  Kf7 {[%clk 0:00:14]} 81. Nd6+ {[%clk 0:00:32]}  Ke6 {[%clk 0:00:14]} 82. Ne8 {[%clk 0:00:33]}  Kf7 {[%clk 0:00:14]} 83. Nd6+ {[%clk 0:00:33]}  Ke6 {[%clk 0:00:15]} 1/2-1/2


[Site "https://www.chess.com"]

[Event "Titled Tuesday Blitz March 28 Early 2023"]
[White "Idnani, Roshan"]
[Black "Perez Gormaz, Matias"]
[WhiteFideId "2072939"]
[BlackFideId "3406342"]
[WhiteElo "2309"]
[BlackElo "2362"]
[Result "0-1"]
[Round "01"]
[TimeControl "180+2"]
[Date "2023.03.28"]
[WhiteClock "0:01:36"]
[BlackClock "0:01:28"]

1. e4 {[%clk 0:03:00]}  c5 {[%clk 0:02:57]} 2. Nf3 {[%clk 0:03:00]}  e6 {[%clk 0:02:58]} 3. b3 {[%clk 0:03:00]}  Nc6 {[%clk 0:02:53]} 4. Bb2 {[%clk 0:03:00]}  Qc7 {[%clk 0:02:50]} 5. g3 {[%clk 0:02:59]}  Nf6 {[%clk 0:02:47]} 6. Nc3 {[%clk 0:02:58]}  a6 {[%clk 0:02:40]} 7. a4 {[%clk 0:02:58]}  d6 {[%clk 0:02:29]} 8. Bg2 {[%clk 0:02:57]}  b6 {[%clk 0:02:28]} 9. O-O {[%clk 0:02:55]}  Bb7 {[%clk 0:02:28]} 10. d4 {[%clk 0:02:55]}  cxd4 {[%clk 0:02:28]} 11. Nxd4 {[%clk 0:02:56]}  Nxd4 {[%clk 0:02:24]} 12. Qxd4 {[%clk 0:02:57]}  Be7 {[%clk 0:02:24]} 13. Rac1 {[%clk 0:02:56]}  O-O {[%clk 0:02:24]} 14. h3 {[%clk 0:02:55]}  Rac8 {[%clk 0:02:22]} 15. Kh2 {[%clk 0:02:54]}  Rfd8 {[%clk 0:02:18]} 16. Rfd1 {[%clk 0:02:53]}  Bc6 {[%clk 0:02:05]} 17. f4 {[%clk 0:02:52]}  e5 {[%clk 0:02:01]} 18. fxe5 {[%clk 0:02:46]}  dxe5 {[%clk 0:02:01]} 19. Qe3 {[%clk 0:02:47]}  Bc5 {[%clk 0:01:59]} 20. Qe2 {[%clk 0:02:47]}  Bd4 {[%clk 0:01:58]} 21. Rd3 {[%clk 0:02:15]}  Rd7 {[%clk 0:01:43]} 22. Rcd1 {[%clk 0:02:13]}  Rcd8 {[%clk 0:01:42]} 23. g4 {[%clk 0:02:06]}  h6 {[%clk 0:01:40]} 24. Rg3 {[%clk 0:01:53]}  b5 {[%clk 0:01:34]} 25. axb5 {[%clk 0:01:51]}  axb5 {[%clk 0:01:34]} 26. g5 {[%clk 0:01:37]}  hxg5 {[%clk 0:01:34]} 27. Rxg5 {[%clk 0:01:38]}  Bxc3 {[%clk 0:01:28]} 28. Rxd7 {[%clk 0:01:36]}  Bxd7 {[%clk 0:01:28]} 0-1


[Site "https://www.chess.com"]